fUST/lending_fUST_20250301
["ID","MTS","AMOUNT","RATE_DAILY","PERIOD"]
[354880596,1740769840957,-1650.5,0.00049315,120]
[354880597,1740769840968,-220.98884203,0.00049315,120]
[354880598,1740769840978,-1345.85,0.00049315,120]
[354880599,1740769840988,-500.0,0.00049315,120]
[354880600,1740769840999,-500.0,0.00049315,120]
[354880601,1740769841010,-500.0,0.00049315,120]
[354880602,1740769841020,-500.0,0.00049315,120]
[354880603,1740769841030,-500.0,0.00049315,120]
[354880604,1740769841040,-500.0,0.00049315,120]
[354880605,1740769841050,-507.45,0.00049315,120]
[354880606,1740769841060,-2854.64,0.00049315,120]
[354880607,1740769841070,-2854.64,0.00049315,120]
[354880608,1740769841080,-2854.64,0.00049315,120]
[354880609,1740769841090,-2854.64,0.00049315,120]
[354880610,1740769841100,-3775.96,0.00049315,120]
[354880611,1740769841109,-2854.64,0.00049315,120]
[354880612,1740769841119,-2854.64,0.00049315,120]
[354880613,1740769841128,-2854.64,0.00049315,120]
[354880614,1740769841138,-2854.64,0.00049315,120]
[354880615,1740769841148,-2854.64,0.00049315,120]
[354880616,1740769841157,-2854.64,0.00049315,120]
[354880617,1740769841167,-500.0,0.00049315,120]
[354880618,1740769841177,-2854.64,0.00049315,120]
[354880619,1740769841186,-151.0,0.00049315,120]
[354880620,1740769841197,-2854.64,0.00049315,120]
[354880621,1740769841207,-2854.64,0.00049315,120]
[354880622,1740769841216,-151.0,0.00049315,120]
[354880623,1740769841386,-2854.64,0.00049315,120]
[354880624,1740769841399,-1486.34,0.00049315,120]
[354880625,1740769841409,-2854.64,0.00049315,120]
[354880626,1740769841419,-2854.64,0.00049315,120]
[354880627,1740769841430,-2854.64,0.00049315,120]
[354880628,1740769841440,-500.0,0.00049315,120]
[354880629,1740769841450,-500.0,0.00049315,120]
[354880630,1740769841462,-2854.64,0.00049315,120]
[354880631,1740769841473,-2854.64,0.00049315,120]
[354880632,1740769841483,-2854.64,0.00049315,120]
[354880633,1740769841493,-2854.64,0.00049315,120]
[354880634,1740769841503,-2854.64,0.00049315,120]
[354880635,1740769841513,-500.0,0.00049315,120]
[354880636,1740769841524,-2854.64,0.00049315,120]
[354880637,1740769841534,-2854.68,0.00049315,120]
[354880638,1740769841543,-500.0,0.00049315,120]
[354880639,1740769841553,-500.0,0.00049315,120]
[354880640,1740769841563,-12479.31,0.00049315,120]
[354880641,1740769841572,-873.72,0.00049315,120]
[354880642,1740769841582,-500.0,0.00049315,120]
[354880643,1740769841592,-500.0,0.00049315,120]
[354880644,1740769841601,-500.0,0.00049315,120]
[354880645,1740769841611,-476.23981209,0.00049315,120]
[354880684,1740769843607,-1160.54710451,0.00049215,2]
[354880685,1740769843666,-350.0,0.00049215,2]
[354880698,1740769846961,-357.77621693,0.00049215,2]
[354880699,1740769846971,-488.18378307,0.00049305,10]
[354880700,1740769847123,-2465.00000001,0.00049305,10]
[354880702,1740770584259,3000.0,0.0003,2]
[354880704,1740770817133,-173.26958556,0.00043632,120]
[354880705,1740770817154,-160.0,0.00043673,2]
[354880706,1740770817176,-1368.7333495,0.00043675,2]
[354880710,1740770916521,332.65380645,0.000145,2]
[354880712,1740770962109,-235.566011,0.00041669,2]
[354880713,1740770962131,-1483.57725973,0.00043656,2]
[354880725,1740771038584,-9750.0,0.00043656,2]
[354880823,1740771043864,-160.0,0.00043656,2]
[354880825,1740771043874,-4377.8337766,0.00043732,2]
[354880827,1740771043883,-160.453,0.00045494,74]
[354880829,1740771043892,-201.17385702,0.000459,10]
[354880831,1740771043901,-201.17385702,0.00047167,10]
[354880833,1740771043910,-1898.36370522,0.0004798,2]
[354880835,1740771043919,-2000.0,0.00048,3]
[354880837,1740771043928,-201.17385702,0.00048433,11]
[354880839,1740771043938,-10000.0,0.000485,80]
[354880841,1740771043947,-302.8359803,0.000488,28]
[354880843,1740771043956,-500.84,0.000489,2]
[354880845,1740771043967,-800.0,0.00048976,14]
[354880847,1740771043976,-800.0,0.00048978,14]
[354880849,1740771043985,-1000.0,0.00049,120]
[354880851,1740771043994,-1000.0,0.00049,120]
[354880853,1740771044004,-1000.0,0.00049,120]
[354880855,1740771044014,-2000.0,0.00049,3]
[354880857,1740771044024,-800.0,0.00049075,14]
[354880860,1740771044034,-14381.13386485,0.00049179,2]
[354880861,1740771044044,-179.17017514,0.00049215,2]
[354880864,1740771044054,-3000.0,0.00049215,2]
[354880866,1740771044063,-188.33,0.00049215,120]
[354880868,1740771044072,-219.72456853,0.00049215,120]
[354880870,1740771044082,-800.0,0.00049279,14]
[354880872,1740771044091,-2941.8,0.00049305,10]
[354880874,1740771044100,-440.99578366,0.00049307,14]
[354880876,1740771044109,-1721.12047902,0.0004931,3]
[354880915,1740771672282,10000.0,0.0003,30]
[354880916,1740771823584,-150.0,0.00049,81]
[354880917,1740771824135,-150.0,0.00033,30]
[354880918,1740771829131,-150.0,0.00033,30]
[354880919,1740771829414,-150.0,0.00032877,2]
[354880920,1740771832399,-150.0,0.00033,30]
[354880921,1740771832931,-3.69701458,0.00033,30]
[354880922,1740771832955,-146.30298542,0.00033,30]
[354880923,1740771836051,-35.612083,0.00032877,2]
[354880924,1740771836075,-114.387917,0.00033,30]
[354880925,1740771837540,-150.0,0.00033,30]
[354880926,1740771841990,-43.00611216,0.00033,30]
[354880927,1740771842013,-106.99388784,0.00033,30]
[354880928,1740771842539,-150.0,0.00033,30]
[354880929,1740771843552,-150.0,0.00033,30]
[354880930,1740771844842,-46.70312674,0.00033,30]
[354880931,1740771845243,-150.0,0.000429,9]
[354880932,1740771853629,-150.0,0.00045485,74]
[354880933,1740771856779,-10.453,0.00045485,74]
[354880934,1740771856801,-139.547,0.00047191,28]
[354880935,1740771860382,-50.0,0.00049,81]
[354880936,1740771860404,-100.0,0.00049,120]
[354880937,1740771861121,-150.0,0.00049,120]
[354880938,1740771862205,-150.0,0.00049,120]
[354880939,1740771879767,-49.91286143,0.000429,9]
[354880940,1740771883850,-150.0,0.00044829,10]
[354880941,1740771884453,-49.9128613,0.00044829,10]
[354880942,1740771884476,-100.0871387,0.00046757,10]
[354880943,1740771893955,-145.17417452,0.00047191,28]
[354880944,1740771908998,-99.8257226,0.00046757,10]
[354880945,1740771909612,-150.0,0.00037918,2]
[354880946,1740771916519,-150.0,0.00037918,2]
[354880947,1740771917749,-126.3774218,0.00037918,2]
[354880948,1740771917774,-23.6225782,0.00040947,2]
[354880949,1740771918357,-127.3774218,0.00040947,2]
[354880950,1740771920077,22.6225782,0.00040947,2]
[354880951,1740771923577,50.1742774,0.00033,30]
[354880952,1740771923599,150.0,0.00033,30]
[354880954,1740772034150,-53.12259586,0.00033,30]
[354880955,1740772034174,-477.3774218,0.00040947,2]
[354880956,1740772034201,-24594.2766145,0.00040971,2]
[354880957,1740772034224,-166.1,0.00041495,2]
[354880958,1740772034248,-500.0,0.00041495,2]
[354880959,1740772034275,-182.71,0.00042043,2]
[354880960,1740772034299,-500.0,0.00042043,2]
[354880961,1740772034324,-200.981,0.00042591,2]
[354880962,1740772034347,-500.0,0.00042591,2]
[354880963,1740772034372,-1397.2029364,0.00042633,2]
[354880964,1740772034396,-221.0791,0.00043139,2]
[354880965,1740772034419,-500.0,0.00043139,2]
[354880966,1740772034442,-160.0,0.00043551,2]
[354880967,1740772034464,-302.0,0.00043687,2]
[354880968,1740772034486,-302.0,0.00043687,2]
[354880969,1740772034509,-249.13102767,0.00046382,28]
[354880970,1740772034531,-18264.80368248,0.00046482,2]
[354880971,1740772034552,-160.0,0.00046482,2]
[354880972,1740772034575,-249.13102767,0.00047256,28]
[354880973,1740772034598,-566.6754003,0.00048328,4]
[354880974,1740772034629,-199.9128613,0.00048686,11]
[354880975,1740772034652,-466.34039272,0.00048691,15]
[354880976,1740772034677,-600.0,0.00049,120]
[354880977,1740772034700,-1000.0,0.00049,120]
[354880978,1740772034723,-1000.0,0.00049,120]
[354880979,1740772034745,-1000.0,0.00049,120]
[354880980,1740772034767,-1000.0,0.00049,120]
[354880981,1740772034790,-13572.0,0.00049,10]
[354880982,1740772034811,-190.54126788,0.00049193,14]
[354880983,1740772034835,-800.0,0.00049198,14]
[354880984,1740772034858,-800.0,0.00049215,14]
[354880985,1740772034880,-2323.83999187,0.00049215,2]
[354880986,1740772034903,-1418.69,0.00049303,10]
[354880987,1740772034924,-278.87952098,0.0004931,3]
[354880988,1740772034947,-3899.21464157,0.00049313,35]
[354880989,1740772035123,-26063.6919837,0.00049313,35]
[354880990,1740772035146,-95374.54490001,0.00049313,35]
[354880991,1740772035169,-49.20891729,0.00049314,2]
[354880992,1740772048082,-249.13102767,0.00048131,28]
[354880993,1740772048104,-249.13102767,0.00049005,28]
[354880994,1740772048130,-2215.05,0.00049303,10]
[354880995,1740772048152,-151.0,0.00049314,2]
[354880996,1740772048173,-14981.45331264,0.00049315,35]
[354880997,1740772048198,-47687.27245001,0.00049315,35]
[354880998,1740772048219,-20000.0,0.00049315,120]
[354880999,1740772048241,-20000.0,0.00049315,120]
[354881000,1740772048262,-384.1121605,0.00049315,120]
[354881001,1740772048283,-500.0,0.00049315,120]
[354881002,1740772048304,-500.0,0.00049315,120]
[354881003,1740772048325,-500.0,0.00049315,120]
[354881004,1740772048346,-500.0,0.00049315,120]
[354881005,1740772048367,-500.0,0.00049315,120]
[354881006,1740772048389,-500.0,0.00049315,120]
[354881007,1740772048411,-500.0,0.00049315,120]
[354881008,1740772048432,-538.87354975,0.00049315,120]
[354881009,1740772048454,-500.0,0.00049315,120]
[354881010,1740772048477,-501.74455658,0.00049315,120]
[354881011,1740772048498,-465.53370872,0.00049315,120]
[354881012,1740772048519,-151.0,0.00049315,120]
[354881013,1740772048539,-151.0,0.00049315,120]
[354881014,1740772048559,-151.0,0.00049315,120]
[354881015,1740772048579,-500.0,0.00049315,120]
[354881016,1740772048600,-151.420276,0.00049315,120]
[354881017,1740772048622,-500.0,0.00049315,120]
[354881018,1740772048644,-506.58561621,0.00049315,120]
[354881019,1740772048664,-151.0,0.00049315,120]
[354881020,1740772048685,-151.837936,0.00049315,120]
[354881021,1740772048706,-500.0,0.00049315,30]
[354881022,1740772048727,-151.0,0.00049315,120]
[354881023,1740772048748,-151.0,0.00049315,120]
[354881024,1740772048768,-151.0,0.00049315,120]
[354881025,1740772048788,-152.080639,0.00049315,120]
[354881026,1740772048809,-173.683733,0.00049315,30]
[354881027,1740772048829,-502.53559664,0.00049315,120]
[354881028,1740772048849,-500.0,0.00049315,120]
[354881029,1740772048870,-500.0,0.00049315,120]
[354881030,1740772048890,-608.24801136,0.00049315,120]
[354881031,1740772048910,-500.0,0.00049315,120]
[354881032,1740772048931,-500.0,0.00049315,120]
[354881033,1740772048952,-500.0,0.00049315,120]
[354881034,1740772048972,-500.0,0.00049315,120]
[354881035,1740772048992,-500.0,0.00049315,120]
[354881036,1740772049013,-502.98196329,0.00049315,120]
[354881037,1740772049034,-500.0,0.00049315,120]
[354881038,1740772049055,-500.0,0.00049315,120]
[354881039,1740772049076,-303.979974,0.00049315,120]
[354881040,1740772049100,-303.979974,0.00049315,120]
[354881041,1740772049122,-303.979974,0.00049315,120]
[354881042,1740772049143,-303.979974,0.00049315,120]
[354881043,1740772049163,-500.0,0.00049315,120]
[354881044,1740772049186,-303.979974,0.00049315,120]
[354881045,1740772049207,-500.0,0.00049315,120]
[354881046,1740772049228,-303.979974,0.00049315,120]
[354881047,1740772049450,-303.979974,0.00049315,120]
[354881048,1740772049473,-303.979974,0.00049315,120]
[354881049,1740772049494,-303.979974,0.00049315,120]
[354881050,1740772049516,-303.979974,0.00049315,120]
[354881051,1740772049544,-303.979974,0.00049315,120]
[354881052,1740772049570,-500.0,0.00049315,120]
[354881053,1740772049591,-303.979974,0.00049315,120]
[354881054,1740772049614,-1390.23,0.00049315,120]
[354881055,1740772049636,-500.0,0.00049315,120]
[354881056,1740772049656,-500.0,0.00049315,120]
[354881057,1740772049677,-500.0,0.00049315,120]
[354881058,1740772049698,-500.0,0.00049315,120]
[354881059,1740772049718,-503.71699019,0.00049315,120]
[354881060,1740772049739,-500.0,0.00049315,120]
[354881061,1740772049760,-500.0,0.00049315,120]
[354881062,1740772049781,-500.0,0.00049315,120]
[354881063,1740772049802,-287.80668082,0.00049315,120]
[354881064,1740772049824,-500.0,0.00049315,120]
[354881065,1740772049845,-500.0,0.00049315,120]
[354881066,1740772049865,-500.0,0.00049315,120]
[354881067,1740772049888,-501.21333596,0.00049315,120]
[354881068,1740772049909,-500.0,0.00049315,120]
[354881069,1740772049930,-649.64664319,0.00049315,120]
[354881070,1740772049951,-500.0,0.00049315,120]
[354881071,1740772049972,-500.0,0.00049315,120]
[354881072,1740772049993,-152.14641524,0.00049315,120]
[354881073,1740772050014,-500.0,0.00049315,120]
[354881074,1740772050037,-554.4851128,0.00049315,120]
[354881075,1740772050059,-502.92,0.00049315,120]
[354881076,1740772050080,-500.0,0.00049315,120]
[354881077,1740772050101,-151.0,0.00049315,120]
[354881078,1740772050129,-151.0,0.00049315,120]
[354881079,1740772050150,-151.0,0.00049315,120]
[354881080,1740772050171,-151.0,0.00049315,120]
[354881081,1740772050192,-154.80639,0.00049315,120]
[354881082,1740772050214,-500.0,0.00049315,120]
[354881083,1740772050234,-500.0,0.00049315,120]
[354881084,1740772050257,-500.0,0.00049315,120]
[354881085,1740772050280,-500.0,0.00049315,120]
[354881086,1740772050302,-500.0,0.00049315,120]
[354881087,1740772050323,-1008.68,0.00049315,120]
[354881088,1740772050344,-500.0,0.00049315,120]
[354881089,1740772050369,-500.0,0.00049315,120]
[354881090,1740772050396,-535.83,0.00049315,120]
[354881091,1740772050430,-500.0,0.00049315,120]
[354881092,1740772050452,-500.0,0.00049315,120]
[354881093,1740772050477,-503.0090842,0.00049315,120]
[354881094,1740772050498,-500.0,0.00049315,120]
[354881095,1740772050519,-500.0,0.00049315,120]
[354881096,1740772050540,-500.0,0.00049315,120]
[354881097,1740772050562,-500.0,0.00049315,120]
[354881098,1740772050584,-500.0,0.00049315,120]
[354881099,1740772050606,-500.0,0.00049315,120]
[354881100,1740772050629,-500.0,0.00049315,120]
[354881101,1740772050650,-500.0,0.00049315,120]
[354881102,1740772050671,-1405.69,0.00049315,120]
[354881103,1740772050692,-500.0,0.00049315,120]
[354881104,1740772050713,-500.27761952,0.00049315,120]
[354881105,1740772050734,-653.75,0.00049315,120]
[354881106,1740772050755,-500.0,0.00049315,120]
[354881107,1740772050777,-500.0,0.00049315,120]
[354881108,1740772050798,-502.8060418,0.00049315,120]
[354881109,1740772050820,-500.0,0.00049315,120]
[354881110,1740772050841,-500.0,0.00049315,120]
[354881111,1740772050863,-500.0,0.00049315,120]
[354881112,1740772050889,-500.0,0.00049315,120]
[354881113,1740772050912,-500.0,0.00049315,120]
[354881114,1740772050933,-500.0,0.00049315,120]
[354881115,1740772050954,-204.96452791,0.00049315,120]
[354881116,1740772050980,-503.98114988,0.00049315,120]
[354881117,1740772051001,-500.0,0.00049315,120]
[354881118,1740772051021,-500.0,0.00049315,120]
[354881119,1740772051042,-500.0,0.00049315,120]
[354881120,1740772051062,-500.0,0.00049315,120]
[354881121,1740772051082,-500.0,0.00049315,120]
[354881122,1740772051104,-479.33969656,0.00049315,120]
[354881123,1740772051130,-500.0,0.00049315,120]
[354881124,1740772051153,-500.0,0.00049315,120]
[354881125,1740772051174,-508.29,0.00049315,120]
[354881126,1740772051196,-500.0,0.00049315,120]
[354881127,1740772051218,-500.0,0.00049315,120]
[354881128,1740772051239,-619.1,0.00049315,120]
[354881129,1740772051260,-500.0,0.00049315,120]
[354881130,1740772051280,-500.95476873,0.00049315,120]
[354881131,1740772051302,-500.0,0.00049315,120]
[354881132,1740772051323,-500.0,0.00049315,120]
[354881133,1740772051344,-505.61,0.00049315,120]
[354881134,1740772051365,-1482.16,0.00049315,120]
[354881135,1740772051388,-500.0,0.00049315,120]
[354881136,1740772051408,-563.73,0.00049315,120]
[354881137,1740772051429,-500.0,0.00049315,120]
[354881138,1740772051450,-500.0,0.00049315,120]
[354881139,1740772051472,-500.0,0.00049315,120]
[354881140,1740772051492,-500.0,0.00049315,120]
[354881141,1740772051515,-500.0,0.00049315,120]
[354881142,1740772051536,-1531.09,0.00049315,120]
[354881143,1740772051556,-262.278936,0.00049315,120]
[354881144,1740772051577,-262.278936,0.00049315,120]
[354881145,1740772051600,-262.278936,0.00049315,120]
[354881146,1740772051624,-262.278936,0.00049315,120]
[354881147,1740772051645,-507.87915736,0.00049315,120]
[354881148,1740772051664,-500.0,0.00049315,120]
[354881149,1740772051685,-262.278936,0.00049315,120]
[354881150,1740772051705,-262.278936,0.00049315,120]
[354881151,1740772051726,-262.278936,0.00049315,120]
[354881152,1740772051747,-500.0,0.00049315,120]
[354881153,1740772051768,-262.278936,0.00049315,120]
[354881154,1740772051788,-262.278936,0.00049315,120]
[354881155,1740772051809,-262.278936,0.00049315,120]
[354881156,1740772051830,-262.278936,0.00049315,120]
[354881157,1740772051851,-262.278936,0.00049315,120]
[354881158,1740772051877,-500.0,0.00049315,120]
[354881159,1740772051898,-500.0,0.00049315,120]
[354881160,1740772051918,-500.0,0.00049315,120]
[354881161,1740772051939,-502.49890242,0.00049315,120]
[354881162,1740772051960,-500.0,0.00049315,120]
[354881163,1740772051980,-1381.07,0.00049315,120]
[354881164,1740772052001,-846.19,0.00049315,120]
[354881165,1740772052021,-500.0,0.00049315,120]
[354881166,1740772052042,-500.0,0.00049315,120]
[354881167,1740772052061,-151.0,0.00049315,120]
[354881168,1740772052081,-151.0,0.00049315,120]
[354881169,1740772052102,-151.0,0.00049315,120]
[354881170,1740772052129,-151.0,0.00049315,120]
[354881171,1740772052149,-506.44503949,0.00049315,120]
[354881172,1740772052169,-151.0,0.00049315,120]
[354881173,1740772052190,-151.0,0.00049315,120]
[354881174,1740772052210,-500.0,0.00049315,15]
[354881175,1740772052231,-552.92,0.00049315,120]
[354881176,1740772052252,-500.0,0.00049315,120]
[354881177,1740772052273,-151.0,0.00049315,120]
[354881178,1740772052293,-151.0,0.00049315,120]
[354881179,1740772052313,-151.0,0.00049315,120]
[354881180,1740772052338,-207.054429,0.00049315,120]
[354881181,1740772052358,-500.0,0.00049315,120]
[354881182,1740772052382,-500.0,0.00049315,120]
[354881183,1740772052404,-500.0,0.00049315,120]
[354881184,1740772052426,-500.0,0.00049315,120]
[354881185,1740772052448,-500.0,0.00049315,120]
[354881186,1740772052471,-500.0,0.00049315,120]
[354881187,1740772052493,-1000.0,0.00049315,20]
[354881188,1740772052514,-500.0,0.00049315,45]
[354881189,1740772052536,-500.0,0.00049315,120]
[354881190,1740772052557,-500.0,0.00049315,120]
[354881191,1740772052579,-500.0,0.00049315,120]
[354881192,1740772052599,-500.0,0.00049315,120]
[354881193,1740772052623,-634.89,0.00049315,120]
[354881194,1740772052644,-500.0,0.00049315,120]
[354881195,1740772052665,-500.0,0.00049315,120]
[354881196,1740772052686,-500.0,0.00049315,120]
[354881197,1740772052708,-501.63349858,0.00049315,120]
[354881198,1740772052916,-365.78121857,0.00049315,120]
[354881199,1740772052938,-500.0,0.00049315,120]
[354881200,1740772052958,-500.0,0.00049315,120]
[354881201,1740772052977,-500.0,0.00049315,120]
[354881202,1740772052999,-500.0,0.00049315,120]
[354881203,1740772053020,-500.0,0.00049315,120]
[354881204,1740772053041,-500.0,0.00049315,120]
[354881205,1740772053062,-500.0,0.00049315,120]
[354881206,1740772053082,-678.68,0.00049315,120]
[354881207,1740772053103,-500.0,0.00049315,120]
[354881208,1740772053127,-151.0,0.00049315,120]
[354881209,1740772053148,-151.0,0.00049315,120]
[354881210,1740772053170,-500.0,0.00049315,120]
[354881211,1740772053192,-151.0,0.00049315,120]
[354881212,1740772053215,-151.0,0.00049315,120]
[354881213,1740772053238,-151.0,0.00049315,120]
[354881214,1740772053260,-258.321239,0.00049315,120]
[354881215,1740772053282,-500.0,0.00049315,120]
[354881216,1740772053304,-500.0,0.00049315,120]
[354881217,1740772053325,-1050.02,0.00049315,120]
[354881218,1740772053347,-151.0,0.00049315,120]
[354881219,1740772053369,-151.0,0.00049315,120]
[354881220,1740772053392,-151.0,0.00049315,120]
[354881221,1740772053414,-153.527707,0.00049315,120]
[354881222,1740772053437,-500.0,0.00049315,120]
[354881223,1740772053460,-500.0,0.00049315,120]
[354881224,1740772053484,-500.0,0.00049315,120]
[354881225,1740772053508,-500.0,0.00049315,120]
[354881226,1740772053530,-500.0,0.00049315,120]
[354881227,1740772053552,-151.0,0.00049315,120]
[354881228,1740772053575,-151.0,0.00049315,120]
[354881229,1740772053597,-500.0,0.00049315,120]
[354881230,1740772053623,-206.272844,0.00049315,120]
[354881231,1740772053646,-151.0,0.00049315,120]
[354881232,1740772053669,-500.0,0.00049315,120]
[354881233,1740772053694,-500.0,0.00049315,120]
[354881234,1740772053716,-500.0,0.00049315,120]
[354881235,1740772053739,-500.0,0.00049315,120]
[354881236,1740772053762,-500.0,0.00049315,120]
[354881237,1740772053785,-500.0,0.00049315,120]
[354881238,1740772053806,-500.0,0.00049315,120]
[354881239,1740772053829,-500.0,0.00049315,120]
[354881240,1740772053852,-500.0,0.00049315,120]
[354881241,1740772053876,-500.0,0.00049315,120]
[354881242,1740772053898,-500.0,0.00049315,120]
[354881243,1740772053919,-1109.93,0.00049315,120]
[354881244,1740772053942,-500.0,0.00049315,120]
[354881245,1740772053965,-523.11,0.00049315,120]
[354881246,1740772053986,-170.973601,0.00049315,120]
[354881247,1740772054008,-170.973601,0.00049315,120]
[354881248,1740772054031,-170.973601,0.00049315,120]
[354881249,1740772054053,-170.973601,0.00049315,120]
[354881250,1740772054075,-170.973601,0.00049315,120]
[354881251,1740772054098,-170.973601,0.00049315,120]
[354881252,1740772054125,-170.973601,0.00049315,120]
[354881253,1740772054147,-369.218503,0.00049315,120]
[354881254,1740772054170,-369.218503,0.00049315,120]
[354881255,1740772054192,-369.218503,0.00049315,120]
[354881256,1740772054214,-500.0,0.00049315,120]
[354881257,1740772054235,-500.0,0.00049315,120]
[354881258,1740772054256,-170.973601,0.00049315,120]
[354881259,1740772054278,-369.218503,0.00049315,120]
[354881260,1740772054299,-170.973601,0.00049315,120]
[354881261,1740772054321,-369.218503,0.00049315,120]
[354881262,1740772054342,-170.973601,0.00049315,120]
[354881263,1740772054362,-369.218503,0.00049315,120]
[354881264,1740772054387,-170.973601,0.00049315,120]
[354881265,1740772054409,-503.14657004,0.00049315,120]
[354881266,1740772054432,-369.218503,0.00049315,120]
[354881267,1740772054454,-170.973601,0.00049315,120]
[354881268,1740772054476,-170.973601,0.00049315,120]
[354881269,1740772054498,-735.76,0.00049315,120]
[354881270,1740772054519,-170.973601,0.00049315,120]
[354881271,1740772054540,-500.0,0.00049315,120]
[354881272,1740772054562,-369.218503,0.00049315,120]
[354881273,1740772054583,-500.0,0.00049315,120]
[354881274,1740772054604,-369.218503,0.00049315,120]
[354881275,1740772054628,-500.0,0.00049315,120]
[354881276,1740772054649,-369.218503,0.00049315,120]
[354881277,1740772054670,-369.218503,0.00049315,120]
[354881278,1740772054691,-369.218503,0.00049315,120]
[354881279,1740772054711,-369.218503,0.00049315,120]
[354881280,1740772054734,-411.46420398,0.00049315,20]
[354881281,1740772054756,-501.15629573,0.00049315,120]
[354881282,1740772054780,-369.218503,0.00049315,120]
[354881283,1740772054800,-500.0,0.00049315,120]
[354881284,1740772054821,-2360.42,0.00049315,120]
[354881285,1740772054842,-500.0,0.00049315,120]
[354881286,1740772054862,-504.18637491,0.00049315,120]
[354881287,1740772054885,-500.0,0.00049315,120]
[354881288,1740772054904,-500.0,0.00049315,120]
[354881289,1740772054925,-500.0,0.00049315,120]
[354881290,1740772054947,-500.0,0.00049315,120]
[354881291,1740772054968,-500.0,0.00049315,120]
[354881292,1740772054989,-500.0,0.00049315,120]
[354881293,1740772055010,-500.0,0.00049315,120]
[354881294,1740772055033,-500.0,0.00049315,120]
[354881295,1740772055053,-500.0,0.00049315,120]
[354881296,1740772055073,-500.0,0.00049315,120]
[354881297,1740772055093,-500.0,0.00049315,120]
[354881298,1740772055118,-615.84,0.00049315,120]
[354881299,1740772055140,-500.0,0.00049315,120]
[354881300,1740772055161,-500.0,0.00049315,10]
[354881301,1740772055183,-500.0,0.00049315,120]
[354881302,1740772055207,-500.0,0.00049315,120]
[354881303,1740772055229,-500.0,0.00049315,120]
[354881304,1740772055250,-1336.12,0.00049315,120]
[354881305,1740772055271,-1513.33,0.00049315,120]
[354881306,1740772055293,-500.0,0.00049315,120]
[354881307,1740772055313,-151.0,0.00049315,120]
[354881308,1740772055333,-151.0,0.00049315,120]
[354881309,1740772055354,-500.0,0.00049315,120]
[354881310,1740772055376,-151.611183,0.00049315,120]
[354881311,1740772055397,-500.0,0.00049315,120]
[354881312,1740772055418,-500.0,0.00049315,120]
[354881313,1740772055439,-292.405042,0.00049315,120]
[354881314,1740772055459,-500.0,0.00049315,120]
[354881315,1740772055478,-292.405042,0.00049315,120]
[354881316,1740772055499,-292.405042,0.00049315,120]
[354881317,1740772055519,-500.0,0.00049315,120]
[354881318,1740772055539,-500.0,0.00049315,120]
[354881319,1740772055560,-166.334084,0.00049315,120]
[354881320,1740772055580,-292.405042,0.00049315,120]
[354881321,1740772055601,-292.405042,0.00049315,120]
[354881322,1740772055623,-166.334084,0.00049315,120]
[354881323,1740772055643,-292.405042,0.00049315,120]
[354881324,1740772055663,-292.405042,0.00049315,120]
[354881325,1740772055683,-500.0,0.00049315,120]